bitfinex/quotes_SOLUSD_20250718
["timestamp","ask_amount","ask_price","bid_price","bid_amount"]
[1752828180392,12.28238527,179.52,179.47,0.69]
[1752828180702,12.28238527,179.52,179.38,6.28]
[1752828180703,26.0,179.45,179.38,6.28]
[1752828180870,12.22238527,179.42,179.34,1.6501]
[1752828181065,12.22238527,179.42,179.33,6.28]
[1752828181066,38.22238527,179.37,179.31,12.22238527]
[1752828181272,26.0,179.37,179.3,0.69]
[1752828181474,26.0,179.37,179.29,17.79994118]
[1752828181475,0.66,179.36,179.29,17.79994118]
[1752828181697,26.0,179.37,179.28,8.6201]
[1752828181924,12.22238527,179.34,179.28,8.6201]
[1752828182128,12.22238527,179.31,179.25,12.22238527]
[1752828182303,12.22238527,179.3,179.24,0.69]
[1752828182493,12.22238527,179.3,179.24,12.22238527]
[1752828182692,12.22238527,179.3,179.23,5.57942308]
[1752828182693,12.22238527,179.31,179.26,12.22238527]
[1752828182926,12.22238527,179.29,179.27,0.69]
[1752828183106,5.57569411,179.35,179.26,12.22238527]
[1752828183310,0.06,179.31,179.27,12.91238527]
[1752828183699,12.28238527,179.31,179.25,12.22238527]
[1752828183891,12.22238527,179.29,179.25,5.57880055]
[1752828184094,0.06,179.31,179.23,12.91238527]
[1752828184320,12.22238527,179.27,179.24,5.57907142]
[1752828184494,12.22238527,179.28,179.24,5.57907142]
[1752828184693,0.06,179.31,179.25,12.91238527]
[1752828184904,0.06,179.31,179.25,0.69]
[1752828185124,0.06,179.31,179.28,18.20435064]
[1752828185307,0.06,179.31,179.3,18.20435064]
[1752828185697,0.06,179.31,179.3,18.89435064]
[1752828185902,32.14,179.41,179.3,18.89435064]
[1752828186133,32.14,179.41,179.36,18.20435064]
[1752828186296,32.14,179.41,179.37,18.89435064]
[1752828186491,32.14,179.41,179.37,18.20435064]
[1752828186707,18.20435064,179.47,179.38,18.89435064]
[1752828187138,18.20435064,179.41,179.35,0.69]
[1752828187298,38.35350256,179.43,179.33,1.5487]
[1752828187626,18.20435064,179.34,179.29,5.57732892]
[1752828187832,0.66,179.33,179.27,5.57786948]
[1752828187997,18.20435064,179.32,179.27,5.57786948]
[1752828188191,18.20435064,179.31,179.27,5.57786948]
[1752828188410,0.66,179.36,179.28,0.69]
[1752828188411,18.20435064,179.33,179.28,0.69]
[1752828188618,5.57506829,179.37,179.28,18.20435064]
[1752828188833,44.20435064,179.36,179.3,18.20435064]
[1752828189041,18.20435064,179.34,179.29,18.89435064]
[1752828189200,18.20435064,179.33,179.27,5.57786948]
[1752828189399,18.20435064,179.34,179.29,18.20435064]
[1752828189602,26.0,179.35,179.26,18.20435064]
[1752828189803,18.20435064,179.32,179.27,18.20435064]
[1752828190006,18.20435064,179.32,179.28,5.57786702]
[1752828190234,31.57547523,179.36,179.29,18.89435064]
[1752828190235,18.20435064,179.34,179.29,18.89435064]
[1752828190431,18.20435064,179.33,179.28,5.57786702]
[1752828190898,18.20435064,179.31,179.27,5.57816195]
[1752828191105,18.20435064,179.31,179.25,18.89435064]
[1752828191297,0.66,179.35,179.25,18.89435064]
[1752828191541,0.66,179.35,179.27,18.20435064]
[1752828191829,18.20435064,179.32,179.27,18.20435064]
[1752828192024,18.20435064,179.32,179.26,19.52467491]
[1752828192025,31.57628115,179.34,179.26,5.57845155]
[1752828192229,18.20435064,179.32,179.26,23.78280219]
[1752828192412,0.66,179.35,179.28,18.20435064]
[1752828192613,6.23574419,179.35,179.26,5.57845155]
[1752828192822,18.20435064,179.31,179.26,23.78280219]
[1752828193005,18.20435064,179.31,179.24,31.5188736]
[1752828193006,18.20435064,179.3,179.24,31.5188736]
[1752828193241,18.20435064,179.29,179.24,5.57882296]
[1752828193407,18.20435064,179.27,179.22,5.57946888]
[1752828193614,18.20435064,179.3,179.24,18.20435064]
[1752828193831,26.0,179.32,179.25,18.20435064]
[1752828194024,26.0,179.32,179.27,5.57817816]
[1752828194025,44.20435064,179.32,179.27,5.57817816]
[1752828194225,18.20435064,179.29,179.23,18.89435064]
[1752828194440,0.66,179.31,179.23,18.89435064]
[1752828194640,26.0,179.32,179.26,18.20435064]
[1752828194929,32.16,179.34,179.31,18.20435064]
[1752828195138,0.06,179.39,179.25,178.54]
[1752828195307,18.20435064,179.37,179.32,0.69]
[1752828195510,18.20435064,179.37,179.31,18.20435064]
[1752828195708,18.20435064,179.38,179.32,18.20435064]
[1752828195910,32.2,179.39,179.34,18.20435064]
[1752828196129,32.2,179.39,179.36,18.20435064]
[1752828196328,0.06,179.39,179.35,5.57568999]
[1752828196637,0.06,179.39,179.35,23.78004063]
[1752828197011,0.06,179.39,179.37,18.20435064]
[1752828197221,0.06,179.39,179.36,0.69]
[1752828197446,0.06,179.39,179.36,18.89435064]
[1752828197810,0.66,179.39,179.32,5.57662279]
[1752828198147,18.20435064,179.33,179.28,5.57786702]
[1752828198316,18.20435064,179.32,179.28,5.57786702]
[1752828198715,18.20435064,179.3,179.27,5.57811258]
[1752828198912,18.20435064,179.33,179.27,24.47246322]
[1752828199127,26.0,179.35,179.28,18.89435064]
[1752828199318,18.20435064,179.33,179.28,18.89435064]
[1752828199531,26.0,179.35,179.27,5.57811258]
[1752828199532,18.20435064,179.32,179.27,5.57811258]
[1752828199722,26.0,179.35,179.27,5.57811258]
[1752828200038,26.0,179.35,179.26,18.20435064]
[1752828200039,18.20435064,179.32,179.26,0.69]
[1752828200242,18.20435064,179.31,179.26,18.89435064]
[1752828200408,31.57575762,179.35,179.26,18.89435064]
[1752828200612,18.20435064,179.34,179.28,18.20435064]
[1752828200820,18.20435064,179.34,179.28,18.89435064]
[1752828201024,44.20435064,179.36,179.3,18.20435064]
[1752828201432,18.20435064,179.35,179.3,18.20435064]
[1752828201642,6.2934,179.42,179.24,47.21757962]
[1752828201933,32.08,179.41,179.34,18.20435064]
[1752828202121,18.20435064,179.39,179.35,5.57568999]
[1752828202322,18.20435064,179.38,179.34,5.57597781]
[1752828202629,18.20435064,179.39,179.34,5.57597781]
[1752828202841,50.28435064,179.41,179.36,18.20435064]
[1752828203130,50.28435064,179.41,179.36,18.89435064]
[1752828203836,16.78468397,179.46,179.34,5.57597781]
[1752828203837,7.2848,179.5,179.4,18.20435064]
[1752828204040,50.36435064,179.49,179.43,18.20435064]
[1752828204220,50.36435064,179.49,179.43,5.57311557]
[1752828204417,50.36435064,179.49,179.43,23.77746621]
[1752828204626,32.16,179.49,179.44,18.20435064]
[1752828204824,18.20435064,179.47,179.39,5.57444673]
[1752828205111,18.26435064,179.47,179.41,18.20435064]
[1752828205324,0.04,179.47,179.42,18.20435064]
[1752828205521,0.04,179.47,179.42,18.89435064]
[1752828205732,0.04,179.47,179.42,18.20435064]
[1752828205950,18.20435064,179.43,179.38,5.57468806]
[1752828206111,18.20435064,179.42,179.37,0.69]
[1752828206312,18.20435064,179.4,179.34,24.47035153]
[1752828206927,31.98,179.44,179.35,18.20435064]
[1752828207231,18.20435064,179.42,179.34,6.26600089]
[1752828207422,18.20435064,179.4,179.34,24.47035153]
[1752828207623,18.20435064,179.36,179.3,0.71]
[1752828207848,18.20435064,179.35,179.29,18.20435064]
[1752828208129,18.20435064,179.36,179.31,5.5769338]
[1752828208436,18.20435064,179.37,179.31,5.5769338]
[1752828208633,18.20435064,179.36,179.31,23.78128444]
[1752828208843,18.20435064,179.38,179.32,18.91435064]
[1752828209014,18.20435064,179.37,179.32,0.71]
[1752828209217,18.20435064,179.33,179.28,5.60785645]
[1752828209429,31.96,179.34,179.28,0.03]
[1752828209636,18.20435064,179.31,179.28,0.03]
[1752828209841,18.20435064,179.32,179.28,5.6077596]
[1752828210024,31.96,179.34,179.28,5.6077596]
[1752828210227,18.20435064,179.33,179.28,0.03]
[1752828210418,18.20435064,179.32,179.28,0.03]
[1752828210611,18.20435064,179.31,179.28,0.03]
[1752828210919,18.20435064,179.32,179.28,0.03]
[1752828211121,31.96,179.34,179.29,0.71]
[1752828211330,18.20435064,179.32,179.28,0.03]
[1752828211533,38.25613247,179.34,179.28,0.03]
[1752828211728,18.20435064,179.3,179.28,0.03]
[1752828212228,50.88435064,179.29,179.28,0.03]
[1752828212641,31.96,179.29,179.28,0.03]
[1752828214029,50.88435064,179.29,179.28,0.03]
[1752828214543,50.16435064,179.29,179.28,0.03]
[1752828214738,56.46190655,179.29,179.28,0.03]
[1752828214939,31.96,179.29,179.28,0.03]
[1752828215242,55.74190655,179.29,179.28,0.03]
[1752828215446,56.46190655,179.29,179.28,0.03]
[1752828216050,50.88435064,179.29,179.28,0.03]
[1752828216228,31.96,179.29,179.28,0.03]
[1752828217228,31.96,179.29,179.2,0.03]
[1752828217229,26.0,179.26,179.2,0.03]
[1752828217432,18.20435064,179.23,179.2,5.61035674]
[1752828217632,31.88,179.22,179.2,5.61035674]
[1752828217831,31.88,179.22,179.2,0.03]
[1752828218044,50.08435064,179.22,179.2,0.03]
[1752828218245,18.20435064,179.21,179.2,0.03]
[1752828218546,50.08435064,179.22,179.2,0.03]
[1752828218848,18.20435064,179.21,179.2,0.03]
[1752828219240,18.92435064,179.21,179.2,0.03]
[1752828219823,26.0,179.19,179.18,0.03]
[1752828220023,92.84903461,179.19,179.1,0.03]
[1752828220224,0.71,179.18,179.1,0.03]
[1752828220562,18.20435064,179.11,179.1,0.03]
[1752828220762,31.96,179.11,179.1,0.03]
[1752828221322,31.98,179.13,179.1,0.03]
[1752828221547,18.20435064,179.16,179.1,18.94435064]
[1752828221746,31.98,179.15,179.11,18.20435064]
[1752828221949,13.94790657,179.24,179.1,0.74]
[1752828221950,18.20435064,179.19,179.13,18.20435064]
[1752828222152,32.0,179.18,179.14,18.20435064]
[1752828222339,26.0,179.15,179.1,0.03]
[1752828222536,18.20435064,179.12,179.1,0.03]
[1752828222944,31.98,179.11,179.1,0.03]
[1752828223356,50.18435064,179.11,179.1,0.03]
[1752828223730,31.98,179.11,179.1,0.03]
[1752828223934,50.18435064,179.11,179.1,0.03]
[1752828224549,31.98,179.11,179.1,0.03]
[1752828224736,50.18435064,179.11,179.1,0.03]
[1752828225437,31.98,179.11,179.1,0.03]
[1752828226355,55.05784515,179.11,179.1,0.03]
[1752828226560,73.26219579,179.11,179.1,0.03]
[1752828226859,50.54435064,179.11,179.1,0.03]
[1752828227244,38.63316118,179.11,179.1,0.03]
[1752828227446,81.41784515,179.11,179.1,0.03]
[1752828227658,99.62219579,179.11,179.1,0.03]
[1752828228045,81.41784515,179.11,179.1,0.03]
[1752828228246,73.62219579,179.11,179.1,0.03]
[1752828229266,25.04358397,179.1,179.02,0.03]
[1752828229577,42.78468397,179.01,179.0,99.29]
[1752828229741,26.0,179.01,179.0,99.29]
[1752828230058,18.20435064,179.01,179.0,99.29]
[1752828230262,32.4,179.01,179.0,99.29]
[1752828230568,72.9753147,179.01,179.0,99.29]
[1752828230792,50.62435064,179.01,179.0,99.29]
[1752828231262,32.42,179.01,179.0,99.29]
[1752828232952,32.44,179.02,179.0,100.0]
[1752828233153,32.44,179.02,179.0,99.29]
[1752828233859,34.98903461,179.01,179.0,99.29]
[1752828234249,50.62435064,179.01,179.0,99.29]
[1752828234850,32.42,179.01,179.0,99.29]
[1752828235053,26.0,179.04,179.0,100.0]
[1752828235254,32.38,179.03,179.01,0.71]
[1752828235470,50.58435064,179.03,179.0,99.29]
[1752828235875,32.38,179.03,179.0,99.29]
[1752828236091,18.20435064,179.01,179.0,99.29]
[1752828236378,67.34903461,179.01,179.0,99.29]
[1752828236580,72.9353147,179.01,179.0,99.29]
[1752828238961,54.73096406,179.01,179.0,99.29]
[1752828239278,72.9353147,179.01,179.0,99.29]
[1752828240475,40.5753147,179.01,179.0,99.29]
[1752828240671,50.50435064,179.01,179.0,99.29]
[1752828240884,72.8753147,179.01,179.0,99.29]
[1752828241379,22.37096406,179.01,179.0,99.29]
[1752828241562,34.98903461,179.01,179.0,99.29]
[1752828241762,93.24903461,179.01,179.0,99.29]
[1752828242080,76.46435064,179.01,179.0,99.29]
[1752828242289,67.24903461,179.01,179.0,99.29]
[1752828242469,49.04468397,179.01,179.0,99.29]
[1752828242787,42.78468397,179.01,179.0,99.29]
[1752828243082,32.28,179.01,179.0,105.59659217]
[1752828243469,32.28,179.02,179.0,105.59659217]
[1752828243781,32.28,179.02,179.01,0.72]
[1752828244355,32.28,179.02,179.01,18.92435064]
[1752828244676,32.28,179.03,179.02,5.58596804]
[1752828244862,32.28,179.03,179.02,6.30596804]
[1752828245266,32.28,179.03,179.0,99.29]
[1752828245569,32.28,179.03,179.0,100.01]
[1752828245799,18.20435064,179.02,179.0,100.01]
[1752828246085,50.46435064,179.01,179.0,99.29]
[1752828246288,67.22903461,179.01,179.0,99.29]
[1752828246587,50.44435064,179.01,179.0,99.29]
[1752828246786,56.03063073,179.01,179.0,99.29]
[1752828246989,72.8153147,179.01,179.0,99.29]
[1752828247395,54.61096406,179.01,179.0,99.29]
[1752828247572,72.8153147,179.01,179.0,99.29]
[1752828247969,72.8153147,179.01,179.0,99.32]
[1752828248977,72.8153147,179.01,179.0,37.23080243]
[1752828249183,72.8153147,179.01,179.0,9.00056999]
[1752828249377,22.37096406,179.01,179.0,9.00056999]
[1752828249685,72.7953147,179.01,179.0,9.00056999]
[1752828250189,16.78468397,178.97,178.96,0.03]
[1752828250389,67.20903461,178.97,178.96,0.03]
[1752828250759,72.79656324,178.97,178.96,0.03]
[1752828251759,54.5922126,178.97,178.96,0.03]
[1752828251960,72.79656324,178.97,178.96,0.03]
[1752828252890,54.5922126,178.97,178.96,0.03]
[1752828253205,40.57656324,178.97,178.96,0.03]
[1752828253488,72.73656324,178.97,178.96,0.03]
[1752828254065,4.53265838,179.03,178.96,0.03]
[1752828254295,18.20435064,178.97,178.96,0.75]
[1752828254505,50.30435064,178.97,178.96,0.75]
[1752828254999,49.96301775,178.97,178.96,0.03]
[1752828255206,37.68752863,178.97,178.96,0.03]
[1752828255499,49.96301775,178.97,178.96,0.03]
[1752828256211,66.74770172,178.97,178.96,0.03]
[1752828256762,34.64770172,178.97,178.96,0.03]
[1752828257009,66.72770172,178.97,178.96,0.03]
[1752828258196,66.72770172,178.97,178.85,2.2919]
[1752828258197,26.0,178.94,178.85,2.2919]
[1752828258375,109.70201243,178.97,178.85,2.2919]
[1752828258376,26.0,178.89,178.85,2.2919]
[1752828258574,32.04,178.88,178.85,2.2919]
[1752828258884,5.59065242,178.87,178.86,0.72]
[1752828259414,5.59065242,178.87,178.83,0.72]
[1752828259694,26.0,178.83,178.81,11.8058398]
[1752828259895,26.0,178.84,178.81,11.8058398]
[1752828260115,26.0,178.9,178.83,12.27548912]
[1752828260277,26.0,178.86,178.84,12.27548912]
[1752828260609,58.02,178.86,178.85,0.72]
[1752828263090,13.96966183,178.96,178.85,0.72]
[1752828263270,26.0,178.86,178.85,0.72]
[1752828263476,57.94,178.86,178.85,0.72]
[1752828264702,31.92,178.88,178.85,18.58676672]
[1752828264902,31.92,178.88,178.86,12.99548912]
[1752828265100,31.92,178.88,178.81,0.03]
[1752828265101,26.0,178.85,178.81,0.03]
[1752828265284,16.78468397,178.87,178.81,0.03]
[1752828265285,12.27548912,178.83,178.81,0.03]
[1752828265483,60.94017309,178.82,178.81,0.03]
[1752828265690,48.66468397,178.82,178.81,0.03]
[1752828265877,60.94017309,178.82,178.81,0.03]
[1752828266077,0.5,178.82,178.81,0.03]
[1752828266273,32.36,178.82,178.81,0.75]
[1752828266475,58.34,178.82,178.81,0.75]
[1752828266679,16.78468397,178.87,178.81,0.75]
[1752828266900,5.59004767,178.89,178.81,6.34247255]
[1752828267119,12.27548912,178.88,178.82,12.96548912]
[1752828267325,44.11548912,178.88,178.84,7.8071]
[1752828267487,12.27548912,178.88,178.85,0.69]
[1752828267801,31.82,178.9,178.85,0.69]
[1752828267802,12.27548912,178.89,178.85,0.69]
[1752828267994,12.27548912,178.9,178.85,12.96548912]
[1752828268184,12.27548912,178.9,178.86,0.69]
[1752828268383,12.27548912,178.89,178.86,0.69]
[1752828268599,12.27548912,178.87,178.84,7.8071]
[1752828268802,16.78468397,178.95,178.84,20.08258912]
[1752828268984,18.29310154,178.89,178.85,5.5912776]
[1752828269183,18.29310154,178.89,178.86,0.69]
[1752828269478,18.29310154,178.9,178.86,0.69]
[1752828269787,18.29310154,178.92,178.86,0.69]
[1752828269997,31.78,178.95,178.89,18.29310154]
[1752828270208,18.29310154,178.95,178.91,7.6692]
[1752828270508,31.76,178.97,178.92,0.69]
[1752828270711,18.29310154,178.94,178.92,0.69]
[1752828270920,31.78,178.99,178.92,0.69]
[1752828271196,18.29310154,178.94,178.92,6.27900626]
[1752828271405,18.29310154,178.96,178.93,0.69]
[1752828271578,0.06,179.01,178.95,18.29310154]
[1752828271783,0.06,179.01,178.93,0.69]
[1752828271784,18.29310154,179.04,178.99,19.80030154]
[1752828271995,18.29310154,179.05,179.0,18.98310154]
[1752828272192,18.29310154,179.06,179.01,6.852]
[1752828272400,31.74,179.08,179.01,6.852]
[1752828272401,18.29310154,179.04,179.02,0.69]
[1752828272592,18.29310154,179.03,179.02,0.69]
[1752828272918,18.29310154,179.07,179.03,0.69]
[1752828273123,18.29310154,179.06,179.03,6.2753793]
[1752828273422,31.74,179.08,179.04,0.69]
[1752828273715,31.74,179.08,179.02,5.58593828]
[1752828273887,18.29310154,179.03,179.01,6.162]
[1752828274091,31.74,179.08,179.01,6.162]
[1752828274092,18.29310154,179.02,179.01,6.852]
[1752828274396,18.29310154,179.05,179.01,12.43828009]
[1752828274597,18.29310154,179.05,179.01,11.74828009]
[1752828274786,35.72054033,179.1,179.03,18.29310154]
[1752828274787,9.72054033,179.1,179.03,18.29310154]
[1752828274993,18.29310154,179.08,179.05,5.58503211]
[1752828275211,9.72054033,179.1,179.06,0.69]
[1752828275410,41.38054033,179.1,179.06,0.69]
[1752828275603,18.29310154,179.09,179.06,0.69]
[1752828275916,9.72054033,179.1,179.07,18.29310154]
[1752828276212,9.00054033,179.1,179.09,18.29310154]
[1752828276414,9.00054033,179.1,179.09,18.98310154]
[1752828276600,32.87714274,179.1,179.05,0.69]
[1752828276801,0.06,179.1,179.08,18.29310154]
[1752828277000,0.06,179.1,179.09,0.69]
[1752828277483,18.35310154,179.1,179.08,0.69]
[1752828277688,0.06,179.1,179.08,0.69]
[1752828277884,0.06,179.1,179.07,18.29310154]
[1752828278184,0.06,179.1,179.09,0.69]
[1752828278714,0.06,179.1,179.09,18.98310154]
[1752828279091,0.06,179.1,179.09,24.56688622]
[1752828279293,0.06,179.1,179.09,32.71008622]
[1752828280199,0.1,179.15,179.09,33.26846468]
[1752828280409,0.1,179.15,179.14,18.29310154]
[1752828280798,0.1,179.15,179.14,18.98310154]
[1752828281004,0.06,179.18,179.14,18.98310154]
[1752828281204,0.06,179.18,179.16,18.29310154]
[1752828281402,18.29310154,179.17,179.1,6.27347292]
[1752828281593,18.29310154,179.17,179.12,18.29310154]
[1752828281809,18.29310154,179.17,179.13,0.69]
[1752828282398,0.06,179.18,179.14,0.69]
[1752828282597,0.06,179.18,179.15,18.29310154]
[1752828282815,0.06,179.18,179.14,18.29310154]
[1752828283197,0.06,179.18,179.15,0.69]
[1752828283392,18.29310154,179.16,179.09,8.8332]
[1752828283613,18.29310154,179.13,179.09,8.8332]
[1752828284014,18.29310154,179.14,179.09,26.43630154]
[1752828284204,58.2,179.17,179.1,18.98310154]
[1752828284409,18.29310154,179.15,179.1,18.98310154]
[1752828284595,18.29310154,179.15,179.1,18.29310154]
[1752828284806,18.29310154,179.15,179.11,0.69]
[1752828284807,18.29310154,179.13,179.11,0.69]
[1752828285004,18.29310154,179.13,179.09,8.8332]
[1752828285317,18.29310154,179.1,179.06,0.69]
[1752828285518,26.0,179.14,179.04,8.2536]
[1752828285519,18.29310154,179.08,179.04,8.2536]
[1752828285702,18.29310154,179.05,179.0,0.69]
[1752828286016,31.42,179.07,179.0,0.69]
[1752828286202,18.29310154,179.02,179.0,0.69]
[1752828286404,5.58517989,179.05,179.0,0.69]
[1752828286619,18.29310154,179.03,179.0,0.69]
[1752828287507,18.29310154,179.02,178.99,8.2536]
[1752828287701,18.29310154,179.02,178.99,8.9436]
[1752828287902,18.29310154,179.01,178.96,18.98310154]
[1752828288113,18.29310154,179.0,178.97,0.69]
[1752828288308,18.29310154,179.0,178.94,8.2536]
[1752828288309,18.29310154,178.98,178.94,8.9436]
[1752828288510,18.29310154,178.96,178.94,1.5963]
[1752828288730,18.29310154,178.97,178.94,1.5963]
[1752828289223,44.29310154,179.02,178.96,18.29310154]
[1752828289427,31.58603086,179.02,178.94,1.5963]
[1752828289736,31.58603086,179.02,178.92,0.03]
[1752828289737,18.29310154,178.95,178.92,0.72]
[1752828290021,18.29310154,178.96,178.92,0.72]
[1752828290196,18.29310154,178.94,178.92,0.03]
[1752828290526,18.29310154,178.95,178.92,0.03]
[1752828290708,5.58763831,178.97,178.92,0.03]
[1752828290911,18.29310154,178.95,178.92,0.03]
[1752828291110,37.04726908,178.98,178.92,0.03]
[1752828291306,18.29310154,178.96,178.93,0.69]
[1752828291507,18.29310154,178.96,178.92,0.03]
[1752828291714,18.29310154,178.95,178.92,0.03]
[1752828291910,18.29310154,178.95,178.92,0.72]
[1752828292125,37.04729443,178.98,178.92,0.72]
[1752828292512,37.04729443,178.98,178.92,24.60212403]
[1752828292513,31.46,178.98,178.92,24.60212403]
[1752828292703,31.46,178.98,178.93,18.98310154]
[1752828293022,31.4,178.99,178.95,18.29310154]
[1752828293223,31.4,178.99,178.97,18.29310154]
[1752828293412,31.4,178.99,178.94,0.69]
[1752828293728,18.29310154,178.97,178.92,0.72]
[1752828293911,32.1,178.99,178.92,0.72]
[1752828294116,18.29310154,178.96,178.92,0.72]
[1752828294323,5.58721644,178.98,178.92,0.72]
[1752828294527,18.29310154,178.96,178.92,0.72]
[1752828295030,5.58721644,178.98,178.92,0.72]
[1752828295031,32.1,178.95,178.92,0.03]
[1752828295521,12.27378762,178.93,178.92,0.03]
[1752828295704,26.0,178.9,178.83,0.69]
[1752828295903,12.27378762,178.89,178.83,18.55564777]
[1752828296119,0.7,178.92,178.87,12.27378762]
[1752828296120,12.27378762,178.92,178.87,12.27378762]
[1752828296327,43.65378762,178.92,178.88,0.72]
[1752828296533,31.38,178.93,178.89,12.96378762]
[1752828296741,43.65378762,178.93,178.89,0.69]
[1752828297234,26.0,178.95,178.92,12.27378762]
[1752828297613,31.36,178.96,178.92,0.68]
[1752828298224,12.27378762,178.95,178.88,5.62019618]
[1752828298437,12.27378762,178.95,178.9,12.27378762]
[1752828298742,12.27378762,178.91,178.88,0.03]
[1752828298917,12.27378762,178.9,178.88,0.03]
[1752828299231,31.42,178.92,178.88,0.03]
[1752828299232,12.27378762,178.91,178.88,0.03]
[1752828299416,31.42,178.92,178.88,0.03]
[1752828299614,31.42,178.92,178.88,6.30019309]
[1752828299815,12.27378762,178.95,178.9,12.27378762]
[1752828300021,31.42,178.95,178.91,12.95378762]
[1752828300229,31.42,178.95,178.92,12.95378762]
[1752828300437,12.27378762,178.93,178.88,0.71]
[1752828300632,12.27378762,178.89,178.88,0.03]
[1752828300944,43.67378762,178.89,178.88,0.03]
[1752828301110,61.19847159,178.89,178.88,0.03]
[1752828301307,44.41378762,178.89,178.88,0.03]
[1752828301920,61.19847159,178.89,178.88,0.03]
[1752828302321,69.69378762,178.89,178.88,0.03]
[1752828302536,66.78849898,178.89,178.88,0.03]
[1752828302914,26.0,178.85,178.76,11.79904164]
[1752828303137,12.27378762,178.8,178.76,6.205]
[1752828303315,31.42,178.81,178.77,0.68]
[1752828303530,12.27378762,178.81,178.78,0.68]
[1752828303848,12.27378762,178.79,178.76,6.205]
[1752828304140,31.4,178.79,178.75,11.40418703]
[1752828304325,12.27378762,178.76,178.75,11.40418703]
[1752828304716,31.4,178.79,178.75,11.40418703]
[1752828304913,31.4,178.79,178.76,0.68]
[1752828304914,18.31629755,178.79,178.76,0.68]
[1752828305137,18.31629755,178.8,178.76,0.68]
[1752828305322,31.44,178.81,178.77,18.99629755]
[1752828305529,4.41717328,178.91,178.75,16.9985834]
[1752828305530,16.78468397,178.86,178.79,18.31629755]
[1752828305717,5.58971492,178.9,178.82,18.31629755]
[1752828305920,16.78468397,178.89,178.83,7.1864]
[1752828306119,49.79629755,178.9,178.84,18.99629755]
[1752828306425,18.31629755,178.86,178.83,6.5064]
[1752828306631,18.31629755,178.88,178.83,6.5064]
[1752828306833,26.0,178.86,178.81,0.55925283]
[1752828307035,18.31629755,178.85,178.84,0.03]
[1752828307431,57.52,178.86,178.84,0.03]
[1752828307938,18.31629755,178.85,178.84,0.03]
[1752828308726,49.83629755,178.86,178.84,0.03]
[1752828308927,9.7478716,178.92,178.85,18.31629755]
[1752828309229,9.7478716,178.92,178.87,18.31629755]
[1752828309451,28.06416915,178.92,178.87,0.68]
[1752828309648,28.06416915,178.92,178.86,18.31629755]
[1752828309846,28.06416915,178.92,178.88,0.68]
[1752828310051,18.31629755,178.91,178.86,18.31629755]
[1752828310252,9.7478716,178.92,178.87,18.99629755]
[1752828310578,0.06,178.93,178.91,18.31629755]
[1752828310731,0.06,178.93,178.92,0.68]
[1752828310926,0.06,178.93,178.92,18.99629755]
[1752828311734,0.06,178.93,178.92,165.39629755]
[1752828312655,0.06,178.93,178.92,170.98538764]
[1752828313451,31.52,179.02,178.92,203.27441043]
[1752828313665,31.52,179.02,179.01,18.31629755]
[1752828313844,31.52,179.02,179.01,18.99629755]
[1752828314038,18.31629755,179.07,179.01,18.99629755]
[1752828314255,31.46,179.07,179.02,18.31629755]
[1752828314460,0.06,179.15,179.04,18.31629755]
[1752828314762,6.30222619,179.14,179.06,18.31629755]
[1752828314933,6.30222619,179.14,179.05,5.58485087]
[1752828314934,18.31629755,179.12,179.07,18.31629755]
[1752828315138,18.31629755,179.12,179.07,18.99629755]
[1752828315452,31.46,179.13,179.09,18.31629755]
[1752828315660,31.46,179.13,179.09,18.99629755]
[1752828315843,49.77629755,179.13,179.08,18.31629755]
[1752828316042,49.77629755,179.13,179.08,18.99629755]
[1752828316239,31.46,179.13,179.1,18.31629755]
[1752828316447,31.46,179.13,179.09,18.31629755]
[1752828317034,31.46,179.13,179.08,18.31629755]